[Event "Titled Tuesday Blitz May 16 Early 2023"]
[White "Bruedigam, Martin"]
[Black "Jakic, Ivan"]
[WhiteFideId "24608033"]
[BlackFideId "14504901"]
[WhiteElo "2331"]
[BlackElo "2370"]
[Result "0-1"]
[Round "05"]
[TimeControl "180+2"]
[Date "2023.05.16"]
[WhiteClock "0:00:03"]
[BlackClock "0:01:47"]

1. d4 {[%clk 0:03:00]}  Nf6 {[%clk 0:02:59]} 2. c4 {[%clk 0:03:01]}  Nc6 {[%clk 0:02:59]} 3. Nf3 {[%clk 0:02:56]}  e6 {[%clk 0:02:59]} 4. Nc3 {[%clk 0:02:52]}  Bb4 {[%clk 0:02:59]} 5. Bd2 {[%clk 0:02:52]}  d6 {[%clk 0:02:59]} 6. e3 {[%clk 0:02:40]}  O-O {[%clk 0:02:59]} 7. Be2 {[%clk 0:02:36]}  Qe7 {[%clk 0:02:58]} 8. O-O {[%clk 0:02:34]}  Bxc3 {[%clk 0:02:59]} 9. Bxc3 {[%clk 0:02:34]}  e5 {[%clk 0:02:59]} 10. d5 {[%clk 0:02:29]}  Nb8 {[%clk 0:02:59]} 11. Nd2 {[%clk 0:02:26]}  Nbd7 {[%clk 0:02:58]} 12. e4 {[%clk 0:02:22]}  Nc5 {[%clk 0:02:57]} 13. f3 {[%clk 0:02:21]}  a5 {[%clk 0:02:58]} 14. b3 {[%clk 0:02:21]}  Nh5 {[%clk 0:02:57]} 15. g3 {[%clk 0:02:10]}  f5 {[%clk 0:02:52]} 16. f4 {[%clk 0:01:32]}  Nf6 {[%clk 0:02:52]} 17. exf5 {[%clk 0:01:13]}  exf4 {[%clk 0:02:53]} 18. Bxf6 {[%clk 0:00:40]}  Rxf6 {[%clk 0:02:52]} 19. Rxf4 {[%clk 0:00:39]}  Bxf5 {[%clk 0:02:50]} 20. Nf1 {[%clk 0:00:31]}  Re8 {[%clk 0:02:45]} 21. Rf2 {[%clk 0:00:29]}  Ne4 {[%clk 0:02:45]} 22. Rf3 {[%clk 0:00:28]}  Ng5 {[%clk 0:02:43]} 23. Rxf5 {[%clk 0:00:23]}  Rxf5 {[%clk 0:02:40]} 24. Bg4 {[%clk 0:00:23]}  Rf6 {[%clk 0:02:31]} 25. Qd3 {[%clk 0:00:20]}  Qe5 {[%clk 0:02:27]} 26. Rd1 {[%clk 0:00:19]}  Ref8 {[%clk 0:02:24]} 27. Kg2 {[%clk 0:00:16]}  Rf2+ {[%clk 0:02:22]} 28. Kg1 {[%clk 0:00:17]}  h5 {[%clk 0:02:17]} 29. Be6+ {[%clk 0:00:11]}  Nxe6 {[%clk 0:02:13]} 30. dxe6 {[%clk 0:00:12]}  Qxe6 {[%clk 0:02:11]} 31. Ne3 {[%clk 0:00:12]}  h4 {[%clk 0:02:06]} 32. Nd5 {[%clk 0:00:11]}  hxg3 {[%clk 0:02:02]} 33. hxg3 {[%clk 0:00:03]}  R2f3 {[%clk 0:01:47]} 0-1


[Site "https://www.chess.com"]

[Event "Titled Tuesday Blitz May 16 Early 2023"]
[White "Tarasova, Viktoriya"]
[Black "Filgueira, Hernan"]
[WhiteFideId "4175840"]
[BlackFideId "101770"]
[WhiteElo "2182"]
[BlackElo "2363"]
[Result "1-0"]
[Round "05"]
[TimeControl "180+2"]
[Date "2023.05.16"]
[WhiteClock "0:00:20"]
[BlackClock "0:00:00"]

1. d4 {[%clk 0:03:00]}  d6 {[%clk 0:02:57]} 2. c4 {[%clk 0:03:00]}  e5 {[%clk 0:02:56]} 3. Nc3 {[%clk 0:03:00]}  Nd7 {[%clk 0:02:54]} 4. Nf3 {[%clk 0:02:58]}  Ngf6 {[%clk 0:02:53]} 5. e4 {[%clk 0:02:58]}  Be7 {[%clk 0:02:52]} 6. Be2 {[%clk 0:02:58]}  O-O {[%clk 0:02:53]} 7. O-O {[%clk 0:02:59]}  c6 {[%clk 0:02:53]} 8. Re1 {[%clk 0:02:57]}  a6 {[%clk 0:02:53]} 9. h3 {[%clk 0:02:55]}  b5 {[%clk 0:02:53]} 10. a3 {[%clk 0:02:55]}  Bb7 {[%clk 0:02:52]} 11. dxe5 {[%clk 0:02:48]}  dxe5 {[%clk 0:02:51]} 12. b4 {[%clk 0:02:39]}  Qc7 {[%clk 0:02:49]} 13. c5 {[%clk 0:02:37]}  a5 {[%clk 0:02:48]} 14. Rb1 {[%clk 0:02:36]}  axb4 {[%clk 0:02:43]} 15. axb4 {[%clk 0:02:37]}  Rfd8 {[%clk 0:02:42]} 16. Qc2 {[%clk 0:02:36]}  Nf8 {[%clk 0:02:42]} 17. Be3 {[%clk 0:02:30]}  Ne6 {[%clk 0:02:31]} 18. Red1 {[%clk 0:02:30]}  h6 {[%clk 0:02:25]} 19. Rxd8+ {[%clk 0:02:25]}  Rxd8 {[%clk 0:02:24]} 20. Rd1 {[%clk 0:02:22]}  Ra8 {[%clk 0:02:22]} 21. Qb2 {[%clk 0:02:18]}  Nh7 {[%clk 0:02:16]} 22. Nb1 {[%clk 0:02:14]}  Bf6 {[%clk 0:02:13]} 23. Nh2 {[%clk 0:02:08]}  Nd4 {[%clk 0:01:27]} 24. Bf1 {[%clk 0:02:07]}  h5 {[%clk 0:01:22]} 25. Nd2 {[%clk 0:02:02]}  Nf8 {[%clk 0:01:20]} 26. Ndf3 {[%clk 0:01:47]}  Nfe6 {[%clk 0:01:15]} 27. Be2 {[%clk 0:01:36]}  Nxe2+ {[%clk 0:00:58]} 28. Qxe2 {[%clk 0:01:35]}  Ra4 {[%clk 0:00:55]} 29. Qb2 {[%clk 0:01:29]}  Bc8 {[%clk 0:00:54]} 30. Nf1 {[%clk 0:01:21]}  h4 {[%clk 0:00:50]} 31. N1h2 {[%clk 0:01:19]}  Nf4 {[%clk 0:00:48]} 32. Bxf4 {[%clk 0:01:13]}  exf4 {[%clk 0:00:48]} 33. e5 {[%clk 0:01:14]}  Be7 {[%clk 0:00:46]} 34. Qd2 {[%clk 0:01:14]}  Be6 {[%clk 0:00:41]} 35. Nd4 {[%clk 0:00:49]}  Qc8 {[%clk 0:00:16]} 36. Nhf3 {[%clk 0:00:34]}  Bd5 {[%clk 0:00:14]} 37. Qxf4 {[%clk 0:00:33]}  Bxf3 {[%clk 0:00:13]} 38. Qxf3 {[%clk 0:00:32]}  Ra6 {[%clk 0:00:05]} 39. Nf5 {[%clk 0:00:32]}  Bf8 {[%clk 0:00:04]} 40. Qg4 {[%clk 0:00:31]}  Qe6 {[%clk 0:00:00]} 41. f4 {[%clk 0:00:20]} 1-0


[Site "https://www.chess.com"]

[Event "Titled Tuesday Blitz May 16 Early 2023"]
[White "Shevtchenko, Olesya"]
[Black "Fernandez Siles, Luis"]
[WhiteFideId "24131890"]
[BlackFideId "2209420"]
[WhiteElo "2003"]
[BlackElo "2195"]
[Result "1-0"]
[Round "05"]
[TimeControl "180+2"]
[Date "2023.05.16"]
[WhiteClock "0:01:35"]
[BlackClock "0:00:00"]

1. e4 {[%clk 0:02:44]}  c5 {[%clk 0:02:58]} 2. Nf3 {[%clk 0:02:44]}  Nc6 {[%clk 0:02:58]} 3. Bb5 {[%clk 0:02:44]}  g6 {[%clk 0:02:58]} 4. O-O {[%clk 0:02:44]}  Bg7 {[%clk 0:02:58]} 5. Re1 {[%clk 0:02:44]}  Nf6 {[%clk 0:02:58]} 6. e5 {[%clk 0:02:45]}  Nd5 {[%clk 0:02:58]} 7. Nc3 {[%clk 0:02:46]}  Nc7 {[%clk 0:02:58]} 8. Bxc6 {[%clk 0:02:46]}  dxc6 {[%clk 0:02:59]} 9. h3 {[%clk 0:02:46]}  O-O {[%clk 0:02:54]} 10. a4 {[%clk 0:02:47]}  a5 {[%clk 0:02:51]} 11. d3 {[%clk 0:02:47]}  b6 {[%clk 0:02:47]} 12. Be3 {[%clk 0:02:43]}  Nd5 {[%clk 0:02:36]} 13. Bd2 {[%clk 0:02:40]}  Ba6 {[%clk 0:02:17]} 14. b3 {[%clk 0:02:38]}  Nxc3 {[%clk 0:02:14]} 15. Bxc3 {[%clk 0:02:38]}  Bc8 {[%clk 0:02:10]} 16. Qe2 {[%clk 0:02:35]}  Be6 {[%clk 0:02:02]} 17. Bd2 {[%clk 0:02:34]}  h6 {[%clk 0:01:58]} 18. Bf4 {[%clk 0:02:31]}  g5 {[%clk 0:01:57]} 19. Bd2 {[%clk 0:02:28]}  Bf5 {[%clk 0:01:41]} 20. Bc3 {[%clk 0:02:26]}  e6 {[%clk 0:01:38]} 21. Nd2 {[%clk 0:02:25]}  b5 {[%clk 0:01:06]} 22. Ne4 {[%clk 0:02:21]}  Bxe4 {[%clk 0:01:06]} 23. Qxe4 {[%clk 0:02:22]}  Qd5 {[%clk 0:01:03]} 24. Qxd5 {[%clk 0:02:19]}  exd5 {[%clk 0:01:02]} 25. axb5 {[%clk 0:02:19]}  cxb5 {[%clk 0:01:01]} 26. Rxa5 {[%clk 0:02:19]}  b4 {[%clk 0:00:49]} 27. Rxa8 {[%clk 0:02:15]}  Rxa8 {[%clk 0:00:50]} 28. Bb2 {[%clk 0:02:16]}  Ra2 {[%clk 0:00:48]} 29. Rb1 {[%clk 0:02:15]}  Kf8 {[%clk 0:00:46]} 30. g3 {[%clk 0:02:09]}  Ke7 {[%clk 0:00:45]} 31. f4 {[%clk 0:02:08]}  gxf4 {[%clk 0:00:42]} 32. gxf4 {[%clk 0:02:09]}  Ke6 {[%clk 0:00:43]} 33. Kg2 {[%clk 0:02:09]}  Kf5 {[%clk 0:00:36]} 34. e6 {[%clk 0:02:04]}  fxe6 {[%clk 0:00:24]} 35. Bxg7 {[%clk 0:02:02]}  Rxc2+ {[%clk 0:00:24]} 36. Kf3 {[%clk 0:01:57]}  Rh2 {[%clk 0:00:19]} 37. Bf8 {[%clk 0:01:32]}  Rxh3+ {[%clk 0:00:19]} 38. Kg2 {[%clk 0:01:33]}  Rxd3 {[%clk 0:00:18]} 39. Bxc5 {[%clk 0:01:33]}  Kxf4 {[%clk 0:00:18]} 40. Bxb4 {[%clk 0:01:34]}  e5 {[%clk 0:00:14]} 41. Be1 {[%clk 0:01:34]}  e4 {[%clk 0:00:12]} 42. b4 {[%clk 0:01:34]}  Ra3 {[%clk 0:00:02]} 43. b5 {[%clk 0:01:35]}  Ra8 {[%clk 0:00:03]} 44. b6 {[%clk 0:01:35]}  Rg8+ {[%clk 0:00:04]} 45. Kh2 {[%clk 0:01:35]}  d4 {[%clk 0:00:03]} 46. b7 {[%clk 0:01:35]}  Rb8 {[%clk 0:00:00]} 47. Bg3+ {[%clk 0:01:35]} 1-0


[Site "https://www.chess.com"]

[Event "Titled Tuesday Blitz May 16 Early 2023"]
[White "Fiorito, Joaquin"]
[Black "Onslow, Alfie"]
[WhiteFideId "180173"]
[BlackFideId "436976"]
[WhiteElo "2157"]
[BlackElo "2114"]
[Result "1-0"]
[Round "05"]
[TimeControl "180+2"]
[Date "2023.05.16"]
[WhiteClock "0:01:06"]
[BlackClock "0:00:04"]

1. d4 {[%clk 0:03:00]}  Nf6 {[%clk 0:02:59]} 2. c4 {[%clk 0:03:01]}  c5 {[%clk 0:02:59]} 3. d5 {[%clk 0:03:01]}  b5 {[%clk 0:03:00]} 4. Qc2 {[%clk 0:03:00]}  d6 {[%clk 0:02:54]} 5. e4 {[%clk 0:02:58]}  bxc4 {[%clk 0:02:35]} 6. Bxc4 {[%clk 0:02:57]}  g6 {[%clk 0:02:35]} 7. Nf3 {[%clk 0:02:57]}  Bg7 {[%clk 0:02:34]} 8. O-O {[%clk 0:02:57]}  O-O {[%clk 0:02:33]} 9. Nc3 {[%clk 0:02:55]}  Nbd7 {[%clk 0:02:32]} 10. h3 {[%clk 0:02:53]}  Nb6 {[%clk 0:02:28]} 11. Be2 {[%clk 0:02:52]}  e6 {[%clk 0:01:49]} 12. dxe6 {[%clk 0:02:34]}  Bxe6 {[%clk 0:01:34]} 13. Rd1 {[%clk 0:02:34]}  Qe7 {[%clk 0:01:34]} 14. Bf4 {[%clk 0:02:30]}  Rfd8 {[%clk 0:01:27]} 15. e5 {[%clk 0:02:09]}  dxe5 {[%clk 0:01:25]} 16. Nxe5 {[%clk 0:02:10]}  Rac8 {[%clk 0:01:17]} 17. Ba6 {[%clk 0:02:08]}  Rc7 {[%clk 0:01:11]} 18. Rxd8+ {[%clk 0:02:01]}  Qxd8 {[%clk 0:01:06]} 19. Nb5 {[%clk 0:02:01]}  Nfd5 {[%clk 0:00:55]} 20. Nxc7 {[%clk 0:01:56]}  Qxc7 {[%clk 0:00:44]} 21. Nxg6 {[%clk 0:01:15]}  Nxf4 {[%clk 0:00:42]} 22. Nxf4 {[%clk 0:01:15]}  Qxf4 {[%clk 0:00:41]} 23. Qxc5 {[%clk 0:01:08]}  Bxb2 {[%clk 0:00:20]} 24. Rd1 {[%clk 0:01:06]}  Be5 {[%clk 0:00:17]} 25. g3 {[%clk 0:01:06]}  Qf3 {[%clk 0:00:17]} 26. Rd8+ {[%clk 0:01:05]}  Kg7 {[%clk 0:00:13]} 27. Qxe5+ {[%clk 0:01:06]}  Qf6 {[%clk 0:00:14]} 28. Rg8+ {[%clk 0:01:05]}  Kxg8 {[%clk 0:00:04]} 29. Qxf6 {[%clk 0:01:06]} 1-0


[Site "https://www.chess.com"]

[Event "Titled Tuesday Blitz May 16 Early 2023"]
[White "Goldin, Roman"]
[Black "Guerra Tulcan, Lenin"]
[WhiteFideId "2803860"]
[BlackFideId "3601382"]
[WhiteElo "2312"]
[BlackElo "2368"]
[Result "1-0"]
[Round "05"]
[TimeControl "180+2"]
[Date "2023.05.16"]
[WhiteClock "0:00:06"]
[BlackClock "0:00:27"]

1. e4 {[%clk 0:02:59]}  c5 {[%clk 0:03:00]} 2. Nf3 {[%clk 0:02:58]}  e6 {[%clk 0:03:00]} 3. c3 {[%clk 0:02:58]}  b6 {[%clk 0:02:59]} 4. d4 {[%clk 0:02:57]}  cxd4 {[%clk 0:03:00]} 5. cxd4 {[%clk 0:02:57]}  Bb7 {[%clk 0:03:00]} 6. Bd3 {[%clk 0:02:52]}  Nf6 {[%clk 0:02:59]} 7. Qe2 {[%clk 0:02:47]}  d5 {[%clk 0:02:57]} 8. e5 {[%clk 0:02:46]}  Ne4 {[%clk 0:02:57]} 9. O-O {[%clk 0:02:43]}  Be7 {[%clk 0:02:51]} 10. Nbd2 {[%clk 0:02:29]}  Nxd2 {[%clk 0:02:39]} 11. Bxd2 {[%clk 0:02:28]}  Nd7 {[%clk 0:02:38]} 12. h4 {[%clk 0:01:50]}  O-O {[%clk 0:02:36]} 13. Bg5 {[%clk 0:01:42]}  Re8 {[%clk 0:02:32]} 14. Qc2 {[%clk 0:01:28]}  h6 {[%clk 0:02:29]} 15. Bxe7 {[%clk 0:01:27]}  Qxe7 {[%clk 0:02:29]} 16. Qa4 {[%clk 0:01:23]}  Rec8 {[%clk 0:02:22]} 17. Rac1 {[%clk 0:01:23]}  Qd8 {[%clk 0:02:16]} 18. h5 {[%clk 0:01:08]}  a6 {[%clk 0:02:13]} 19. Bb1 {[%clk 0:01:03]}  b5 {[%clk 0:02:11]} 20. Qb3 {[%clk 0:01:03]}  Rxc1 {[%clk 0:02:09]} 21. Rxc1 {[%clk 0:01:02]}  Rc8 {[%clk 0:02:09]} 22. Rc3 {[%clk 0:00:48]}  Rxc3 {[%clk 0:02:07]} 23. Qxc3 {[%clk 0:00:47]}  Qc8 {[%clk 0:02:07]} 24. Qxc8+ {[%clk 0:00:44]}  Bxc8 {[%clk 0:01:31]} 25. Ne1 {[%clk 0:00:44]}  a5 {[%clk 0:01:30]} 26. Kf1 {[%clk 0:00:37]}  b4 {[%clk 0:01:29]} 27. Ke2 {[%clk 0:00:36]}  Kf8 {[%clk 0:01:24]} 28. Bd3 {[%clk 0:00:35]}  Ke7 {[%clk 0:01:24]} 29. Bb5 {[%clk 0:00:32]}  Nb8 {[%clk 0:01:24]} 30. Nd3 {[%clk 0:00:29]}  Bd7 {[%clk 0:01:23]} 31. Bxd7 {[%clk 0:00:20]}  Kxd7 {[%clk 0:01:23]} 32. g4 {[%clk 0:00:18]}  Kc6 {[%clk 0:01:15]} 33. f4 {[%clk 0:00:18]}  Kb5 {[%clk 0:01:13]} 34. b3 {[%clk 0:00:15]}  Nc6 {[%clk 0:01:12]} 35. Ke3 {[%clk 0:00:15]}  a4 {[%clk 0:01:13]} 36. g5 {[%clk 0:00:15]}  Ne7 {[%clk 0:01:10]} 37. Nc5 {[%clk 0:00:09]}  axb3 {[%clk 0:00:56]} 38. axb3 {[%clk 0:00:09]}  Nf5+ {[%clk 0:00:51]} 39. Kd3 {[%clk 0:00:10]}  Kc6 {[%clk 0:00:51]} 40. g6 {[%clk 0:00:08]}  fxg6 {[%clk 0:00:50]} 41. hxg6 {[%clk 0:00:08]}  Nh4 {[%clk 0:00:51]} 42. Nxe6 {[%clk 0:00:07]}  Nxg6 {[%clk 0:00:51]} 43. f5 {[%clk 0:00:06]}  Kd7 {[%clk 0:00:40]} 44. Nxg7 {[%clk 0:00:07]}  Nf4+ {[%clk 0:00:41]} 45. Ke3 {[%clk 0:00:06]}  Ng2+ {[%clk 0:00:41]} 46. Kf2 {[%clk 0:00:06]}  Nf4 {[%clk 0:00:41]} 47. f6 {[%clk 0:00:06]}  h5 {[%clk 0:00:30]} 48. Kf3 {[%clk 0:00:07]}  Nd3 {[%clk 0:00:30]} 49. e6+ {[%clk 0:00:07]}  Kd6 {[%clk 0:00:30]} 50. e7 {[%clk 0:00:07]}  Ne1+ {[%clk 0:00:27]} 51. Ke2 {[%clk 0:00:06]} 1-0


[Site "https://www.chess.com"]

[Event "Titled Tuesday Blitz May 16 Early 2023"]
[White "Belov, Alexei"]
[Black "mjelcic"]
[WhiteFideId "4128206"]
[WhiteElo "2539"]
[BlackElo "2259"]
[Result "1-0"]
[Round "05"]
[TimeControl "180+2"]
[Date "2023.05.16"]
[WhiteClock "0:01:28"]
[BlackClock "0:01:26"]

1. e4 {[%clk 0:03:00]}  g6 {[%clk 0:02:59]} 2. d4 {[%clk 0:03:00]}  Bg7 {[%clk 0:02:56]} 3. Nc3 {[%clk 0:03:00]}  d6 {[%clk 0:02:54]} 4. f4 {[%clk 0:02:59]}  Nd7 {[%clk 0:02:51]} 5. Nf3 {[%clk 0:02:58]}  a6 {[%clk 0:02:51]} 6. a4 {[%clk 0:02:57]}  Ngf6 {[%clk 0:02:49]} 7. e5 {[%clk 0:02:53]}  dxe5 {[%clk 0:02:47]} 8. dxe5 {[%clk 0:02:49]}  Ng8 {[%clk 0:02:45]} 9. Bc4 {[%clk 0:02:46]}  e6 {[%clk 0:02:44]} 10. Be3 {[%clk 0:02:41]}  Ne7 {[%clk 0:02:44]} 11. Qe2 {[%clk 0:02:32]}  O-O {[%clk 0:02:35]} 12. O-O {[%clk 0:02:26]}  b6 {[%clk 0:02:33]} 13. Rad1 {[%clk 0:02:22]}  Bb7 {[%clk 0:02:29]} 14. Ng5 {[%clk 0:02:20]}  Nf5 {[%clk 0:02:23]} 15. Nxe6 {[%clk 0:02:14]}  Qe7 {[%clk 0:01:56]} 16. Nxf8 {[%clk 0:02:08]}  Bxf8 {[%clk 0:01:56]} 17. Nd5 {[%clk 0:02:06]}  Bxd5 {[%clk 0:01:51]} 18. Bxd5 {[%clk 0:02:06]}  Rd8 {[%clk 0:01:51]} 19. Bf2 {[%clk 0:02:02]}  h5 {[%clk 0:01:48]} 20. Qxa6 {[%clk 0:01:54]}  Nc5 {[%clk 0:01:48]} 21. Qc4 {[%clk 0:01:48]}  Qe8 {[%clk 0:01:36]} 22. Bxf7+ {[%clk 0:01:45]}  Qxf7 {[%clk 0:01:36]} 23. Qxf7+ {[%clk 0:01:44]}  Kxf7 {[%clk 0:01:36]} 24. Rxd8 {[%clk 0:01:45]}  Nxa4 {[%clk 0:01:35]} 25. b3 {[%clk 0:01:43]}  Nc3 {[%clk 0:01:35]} 26. Rd7+ {[%clk 0:01:38]}  Be7 {[%clk 0:01:34]} 27. Rxc7 {[%clk 0:01:38]}  Ne2+ {[%clk 0:01:34]} 28. Kh1 {[%clk 0:01:36]}  Nxf4 {[%clk 0:01:33]} 29. Bxb6 {[%clk 0:01:33]}  g5 {[%clk 0:01:26]} 30. Bc5 {[%clk 0:01:28]} 1-0


[Site "https://www.chess.com"]

[Event "Titled Tuesday Blitz May 16 Early 2023"]
[White "Krsnik Cohar, Ivan Vihor"]
[Black "Brown, Raehanna"]
[WhiteFideId "14520044"]
[BlackFideId "7402740"]
[WhiteElo "2414"]
[BlackElo "1655"]
[Result "1-0"]
[Round "05"]
[TimeControl "180+2"]
[Date "2023.05.16"]
[WhiteClock "0:01:55"]
[BlackClock "0:00:53"]

1. e4 {[%clk 0:02:56]}  c5 {[%clk 0:02:58]} 2. Ne2 {[%clk 0:02:56]}  Nc6 {[%clk 0:02:58]} 3. g3 {[%clk 0:02:56]}  g6 {[%clk 0:02:56]} 4. Bg2 {[%clk 0:02:54]}  Bg7 {[%clk 0:02:55]} 5. c3 {[%clk 0:02:54]}  e5 {[%clk 0:02:53]} 6. d3 {[%clk 0:02:55]}  Nge7 {[%clk 0:02:50]} 7. Be3 {[%clk 0:02:55]}  b6 {[%clk 0:02:48]} 8. d4 {[%clk 0:02:55]}  cxd4 {[%clk 0:02:48]} 9. cxd4 {[%clk 0:02:56]}  exd4 {[%clk 0:02:34]} 10. Nxd4 {[%clk 0:02:56]}  Ne5 {[%clk 0:02:34]} 11. Nb5 {[%clk 0:02:37]}  O-O {[%clk 0:02:28]} 12. N1a3 {[%clk 0:02:30]}  Ba6 {[%clk 0:02:08]} 13. O-O {[%clk 0:02:27]}  Bxb5 {[%clk 0:01:47]} 14. Nxb5 {[%clk 0:02:28]}  Nc4 {[%clk 0:01:48]} 15. Bd4 {[%clk 0:02:27]}  Nxb2 {[%clk 0:01:45]} 16. Qb3 {[%clk 0:02:06]}  a6 {[%clk 0:01:10]} 17. Bxg7 {[%clk 0:02:06]}  Kxg7 {[%clk 0:01:09]} 18. Qxb2+ {[%clk 0:02:06]}  Kg8 {[%clk 0:01:10]} 19. Nd6 {[%clk 0:02:03]}  Qc7 {[%clk 0:01:08]} 20. Rfd1 {[%clk 0:02:02]}  Nc6 {[%clk 0:01:08]} 21. Qf6 {[%clk 0:01:57]}  b5 {[%clk 0:00:58]} 22. h4 {[%clk 0:01:56]}  Na5 {[%clk 0:00:56]} 23. h5 {[%clk 0:01:56]}  Nc4 {[%clk 0:00:56]} 24. h6 {[%clk 0:01:55]}  Nxd6 {[%clk 0:00:53]} 25. Qg7# {[%clk 0:01:55]} 1-0


[Site "https://www.chess.com"]

[Event "Titled Tuesday Blitz May 16 Early 2023"]
[White "Gonzalez, Francisco Silva"]
[Black "Sanchez, Robert"]
[WhiteFideId "1512285"]
[BlackFideId "2034360"]
[WhiteElo "2074"]
[BlackElo "1873"]
[Result "1-0"]
[Round "05"]
[TimeControl "180+2"]
[Date "2023.05.16"]
[WhiteClock "0:00:56"]
[BlackClock "0:01:39"]

1. d4 {[%clk 0:02:50]}  d5 {[%clk 0:02:58]} 2. c4 {[%clk 0:02:50]}  e5 {[%clk 0:02:58]} 3. dxe5 {[%clk 0:02:49]}  d4 {[%clk 0:02:59]} 4. Nf3 {[%clk 0:02:48]}  Nc6 {[%clk 0:03:00]} 5. Nbd2 {[%clk 0:02:43]}  Bg4 {[%clk 0:02:59]} 6. g3 {[%clk 0:02:42]}  Qe7 {[%clk 0:02:59]} 7. Bg2 {[%clk 0:02:41]}  O-O-O {[%clk 0:03:00]} 8. O-O {[%clk 0:02:42]}  h5 {[%clk 0:03:00]} 9. h3 {[%clk 0:02:40]}  Be6 {[%clk 0:02:58]} 10. a3 {[%clk 0:02:39]}  g5 {[%clk 0:02:52]} 11. b4 {[%clk 0:02:36]}  g4 {[%clk 0:02:53]} 12. hxg4 {[%clk 0:02:35]}  hxg4 {[%clk 0:02:53]} 13. Nh4 {[%clk 0:02:32]}  Nxe5 {[%clk 0:02:53]} 14. Qa4 {[%clk 0:02:21]}  Kb8 {[%clk 0:02:52]} 15. Bb2 {[%clk 0:02:19]}  Ng6 {[%clk 0:02:50]} 16. Nxg6 {[%clk 0:02:17]}  fxg6 {[%clk 0:02:48]} 17. Rfc1 {[%clk 0:02:15]}  Bd7 {[%clk 0:02:37]} 18. b5 {[%clk 0:01:55]}  Bg7 {[%clk 0:02:37]} 19. Qd1 {[%clk 0:01:49]}  Nh6 {[%clk 0:02:33]} 20. Ne4 {[%clk 0:01:46]}  Nf5 {[%clk 0:02:29]} 21. a4 {[%clk 0:01:42]}  Be5 {[%clk 0:02:23]} 22. Qd3 {[%clk 0:01:41]}  Qh7 {[%clk 0:02:19]} 23. Kf1 {[%clk 0:01:40]}  Qh2 {[%clk 0:02:03]} 24. c5 {[%clk 0:01:37]}  Ne3+ {[%clk 0:01:53]} 25. fxe3 {[%clk 0:01:22]}  Rdf8+ {[%clk 0:01:53]} 26. Ke1 {[%clk 0:01:10]}  dxe3 {[%clk 0:01:45]} 27. Kd1 {[%clk 0:00:56]}  Bxb2 {[%clk 0:01:39]} 1-0


[Site "https://www.chess.com"]

[Event "Titled Tuesday Blitz May 16 Early 2023"]
[White "Przybylski, Wojciech"]
[Black "Girya, Olga"]
[WhiteFideId "1117599"]
[BlackFideId "4195752"]
[WhiteElo "2222"]
[BlackElo "2263"]
[Result "0-1"]
[Round "05"]
[TimeControl "180+2"]
[Date "2023.05.16"]
[WhiteClock "0:00:04"]
[BlackClock "0:00:08"]

1. d4 {[%clk 0:02:59]}  Nf6 {[%clk 0:02:59]} 2. g3 {[%clk 0:02:59]}  d5 {[%clk 0:02:58]} 3. Bg2 {[%clk 0:02:59]}  c6 {[%clk 0:02:51]} 4. Nf3 {[%clk 0:02:57]}  Bf5 {[%clk 0:02:51]} 5. O-O {[%clk 0:02:57]}  h6 {[%clk 0:02:50]} 6. c4 {[%clk 0:02:57]}  e6 {[%clk 0:02:50]} 7. Nc3 {[%clk 0:02:56]}  Nbd7 {[%clk 0:02:49]} 8. Nd2 {[%clk 0:02:52]}  Be7 {[%clk 0:02:44]} 9. Re1 {[%clk 0:02:47]}  O-O {[%clk 0:02:43]} 10. b3 {[%clk 0:02:44]}  Re8 {[%clk 0:02:33]} 11. e4 {[%clk 0:02:42]}  dxe4 {[%clk 0:02:33]} 12. Ndxe4 {[%clk 0:02:41]}  Nxe4 {[%clk 0:02:17]} 13. Nxe4 {[%clk 0:02:40]}  Nf6 {[%clk 0:02:17]} 14. Bb2 {[%clk 0:02:30]}  a5 {[%clk 0:01:55]} 15. a4 {[%clk 0:02:22]}  Nxe4 {[%clk 0:01:35]} 16. Bxe4 {[%clk 0:02:22]}  Bxe4 {[%clk 0:01:35]} 17. Rxe4 {[%clk 0:02:22]}  Bf6 {[%clk 0:01:35]} 18. Qe2 {[%clk 0:02:16]}  Qb6 {[%clk 0:01:30]} 19. Qe3 {[%clk 0:02:03]}  Rad8 {[%clk 0:01:24]} 20. Kg2 {[%clk 0:01:57]}  Rd7 {[%clk 0:01:23]} 21. Rd1 {[%clk 0:01:40]}  Red8 {[%clk 0:01:22]} 22. f4 {[%clk 0:01:19]}  Qb4 {[%clk 0:00:52]} 23. c5 {[%clk 0:00:13]}  b6 {[%clk 0:00:33]} 24. cxb6 {[%clk 0:00:08]}  Qxb6 {[%clk 0:00:27]} 25. g4 {[%clk 0:00:06]}  Rd5 {[%clk 0:00:23]} 26. Rc1 {[%clk 0:00:04]}  Qb7 {[%clk 0:00:13]} 27. g5 {[%clk 0:00:02]}  hxg5 {[%clk 0:00:12]} 28. fxg5 {[%clk 0:00:02]}  Bxg5 {[%clk 0:00:11]} 29. Qc3 {[%clk 0:00:02]}  Bxc1 {[%clk 0:00:11]} 30. Qxc1 {[%clk 0:00:02]}  c5 {[%clk 0:00:11]} 31. Kg1 {[%clk 0:00:02]}  cxd4 {[%clk 0:00:11]} 32. Rg4 {[%clk 0:00:02]}  Qxb3 {[%clk 0:00:09]} 33. Qd2 {[%clk 0:00:02]}  Qe3+ {[%clk 0:00:06]} 34. Qxe3 {[%clk 0:00:02]}  dxe3 {[%clk 0:00:07]} 35. Bc3 {[%clk 0:00:03]}  e5 {[%clk 0:00:06]} 36. Re4 {[%clk 0:00:03]}  f6 {[%clk 0:00:06]} 37. Be1 {[%clk 0:00:02]}  Rd3 {[%clk 0:00:06]} 38. Kf1 {[%clk 0:00:02]}  Ra3 {[%clk 0:00:05]} 39. Bxa5 {[%clk 0:00:02]}  Rd4 {[%clk 0:00:05]} 40. Rxd4 {[%clk 0:00:01]}  exd4 {[%clk 0:00:05]} 41. Bb6 {[%clk 0:00:01]}  Rxa4 {[%clk 0:00:05]} 42. Ke2 {[%clk 0:00:02]}  Kf7 {[%clk 0:00:06]} 43. Kd3 {[%clk 0:00:02]}  Ke6 {[%clk 0:00:07]} 44. h4 {[%clk 0:00:02]}  Kd5 {[%clk 0:00:07]} 45. h5 {[%clk 0:00:03]}  Ra3+ {[%clk 0:00:07]} 46. Ke2 {[%clk 0:00:03]}  Ke4 {[%clk 0:00:07]} 47. h6 {[%clk 0:00:03]}  d3+ {[%clk 0:00:08]} 48. Ke1 {[%clk 0:00:04]}  Ra1# {[%clk 0:00:08]} 0-1


[Site "https://www.chess.com"]

[Event "Titled Tuesday Blitz May 16 Early 2023"]
[White "Liu, Casper"]
[Black "bubeliang"]
[WhiteFideId "1454153"]
[WhiteElo "2221"]
[BlackElo "2600"]
[Result "0-1"]
[Round "05"]
[TimeControl "180+2"]
[Date "2023.05.16"]
[WhiteClock "0:01:47"]
[BlackClock "0:01:24"]

1. d4 {[%clk 0:02:53]}  Nf6 {[%clk 0:02:58]} 2. Bf4 {[%clk 0:02:53]}  d5 {[%clk 0:02:56]} 3. c3 {[%clk 0:02:54]}  g6 {[%clk 0:02:55]} 4. Nd2 {[%clk 0:02:54]}  Bg7 {[%clk 0:02:55]} 5. Ngf3 {[%clk 0:02:52]}  O-O {[%clk 0:02:56]} 6. e3 {[%clk 0:02:52]}  c5 {[%clk 0:02:56]} 7. Ne5 {[%clk 0:02:51]}  Nc6 {[%clk 0:02:55]} 8. h3 {[%clk 0:02:49]}  Qb6 {[%clk 0:02:44]} 9. Qb3 {[%clk 0:02:44]}  c4 {[%clk 0:02:42]} 10. Qa3 {[%clk 0:02:44]}  Re8 {[%clk 0:02:35]} 11. b3 {[%clk 0:02:44]}  cxb3 {[%clk 0:02:23]} 12. axb3 {[%clk 0:02:45]}  Be6 {[%clk 0:02:13]} 13. c4 {[%clk 0:02:44]}  Nxd4 {[%clk 0:01:42]} 14. exd4 {[%clk 0:02:40]}  Qxd4 {[%clk 0:01:42]} 15. Nd3 {[%clk 0:02:21]}  Nh5 {[%clk 0:01:38]} 16. Rd1 {[%clk 0:02:06]}  Nxf4 {[%clk 0:01:36]} 17. Nf3 {[%clk 0:02:02]}  Qc3+ {[%clk 0:01:32]} 18. Rd2 {[%clk 0:01:59]}  Nxd3+ {[%clk 0:01:30]} 19. Bxd3 {[%clk 0:02:00]}  dxc4 {[%clk 0:01:30]} 20. Be2 {[%clk 0:01:55]}  Red8 {[%clk 0:01:27]} 21. Qxe7 {[%clk 0:01:47]}  Rxd2 {[%clk 0:01:24]} 0-1


[Site "https://www.chess.com"]